Cogmind - Beta 16 @@@ ROGUE MODE // 2026.01.29 @ 21:18:53 Player: Assis Result: Self-destructed Performance ------------- Evolutions (1) 500 Regions Visited (2) 400 Robots Destroyed (23) 115 Value Destroyed (280) 280 Prototype IDs (2) 40 Alien Tech Used (0) 0 Bonus (0) 0 TOTAL SCORE: 1335 Bonus ------- None Cogmind --------- Core Integrity 347/400 Matter 253/300 Energy 250/250 System Corruption 0% Temperature Cool (0) Movement Treading (240) Ox1 Location -9/Materials Parts ------- > --- POWER (1) -------- Ion Engine > --- PROPULSION (2) --- Light Treads > --- UTILITY (4) ------ Large Storage Unit Visual Processing Unit Seismic Detector > --- WEAPON (2) ------- Assault Rifle > --- INVENTORY (15) --- Ion Engine Ion Engine Light Treads Light Treads Flight Unit Flight Unit Flight Unit Flight Unit Weight Redist. System Terrain Scan Processor ECM Suite Light Assault Rifle Grenade Launcher Grenade Launcher Peak State ------------ > --- POWER ------------ Ion Engine > --- PROPULSION ------- Light Treads Light Treads > --- UTILITY ---------- Large Storage Unit Structural Scanner Visual Processing Unit Seismic Detector > --- WEAPON ----------- Assault Rifle Assault Rifle > --- INVENTORY -------- Ion Engine Ion Engine Light Treads Light Treads Flight Unit Flight Unit Flight Unit Flight Unit Weight Redist. System Terrain Scan Processor Light Assault Rifle Grenade Launcher Grenade Launcher [Rating: 11] Favorites ----------- Power Light Ion Engine Engine Light Ion Engine Propulsion Light Treads Treads Light Treads Utility Seismic Detector Device Seismic Detector Storage Large Storage Unit Processor Visual Processing Unit Weapon Assault Rifle Ballistic Gun Assault Rifle Build | -11 -10 -9 ------- Run | Yrd Mat Mat Slots Evolved 2 | . . 2 Power . | . . . Propulsion . | . . . Utility 2 | . . 2 Weapon . | . . . Parts Attached 12 | 7 3 2 Power 2 | 1 1 . Engine 2 | 1 1 . Core . | . . . Reactor . | . . . Propulsion 2 | 2 . . Treads 2 | 2 . . Leg . | . . . Wheel . | . . . Hover . | . . . Flight . | . . . Utility 5 | 2 1 2 Device 2 | 1 . 1 Storage 2 | 1 1 . Processor 1 | . . 1 Hackware . | . . . Protection . | . . . Artifact . | . . . Weapon 3 | 2 1 . Energy Gun . | . . . Energy Cannon . | . . . Ballistic Gun 3 | 2 1 . Ballistic Cannon . | . . . Launcher . | . . . Special Weapon . | . . . Impact Weapon . | . . . Slashing Weapon . | . . . Piercing Weapon . | . . . Special Melee Weapon . | . . . Unidentified Prototypes . | . . . Parts Lost 3 | . . 3 Power . | . . . Propulsion 1 | . . 1 Utility 1 | . . 1 Weapon 1 | . . 1 Highest Loss Streak 3 | . . 3 To Critical Strikes . | . . . Average Backups 10 | . 11 13 Power 1 | . 1 2 Propulsion 2 | . 2 6 Utility 4 | . 4 2 Weapon 2 | . 2 3 Tool/Special . | . . . Unused Backups 17 | . 4 13 Power 2 | . . 2 Propulsion 6 | . . 6 Utility 7 | . 4 3 Weapon 2 | . . 2 Tool/Special . | . . . Average Slot Usage (%) 99 | . 100 96 Engine 13 | . 14 11 Treads 27 | . 28 20 Device 14 | . 14 20 Storage 13 | . 14 11 Ballistic Gun 27 | . 28 22 Peak Build Rating 11 | 7 8 11 Average Rating 7 | 5 7 10 On Entrance 5 | . 7 8 Avg Prop Armor Cover (%) . | . . . Naked Turns . | . . . Heaviest Build 31 | 12 30 31 Greatest Support 40 | 40 40 40 Greatest Overweight (x) . | . . . Average Overweight (x) . | . . . Largest Inventory Capacity 15 | 8 15 15 Average Capacity 14 | 7 14 15 Most Carried 15 | 1 15 14 Average Carried 10 | . 11 13 Final Capacity 15 | 8 15 15 Final Carried 15 | 1 15 14 Class Distribution -------------------- 95% | Mutant 4% | Scavenger-Mutant Dominant Class ---------------- Mutant | -10/Materials Scavenger-Mutant | -9/Materials Resources | -11 -10 -9 ----------- Run | Yrd Mat Mat Matter Collected 602 | 259 343 . Remotely . | . . . Salvage Created 612 | 115 486 11 Parts 58 | 8 48 2 Haulers Intercepted 2 | . 2 . Recyclers Shooed 1 | 1 . . Parts Field Recycled . | . . . Retrieved Matter . | . . . Parts Self-Destructed . | . . . Prevented . | . . . Parts Restored . | . . . Kills | -11 -10 -9 ------- Run | Yrd Mat Mat Combat Hostiles Destroyed 13 | . 12 1 Guns 13 | . 12 1 Classes Destroyed 9 | 2 7 . Worker 1 | . 1 . Builder 1 | . 1 . Tunneler 2 | 2 . . Hauler 2 | . 2 . Recycler 1 | 1 . . Operator 1 | . 1 . Watcher 2 | . 2 . Swarmer 10 | . 9 1 Grunt 3 | . 3 . Best Kill Streak 5 | 3 5 1 Combat Bots Only 5 | . 5 1 Max Kills in Single Turn 1 | 1 1 1 Gunslinging . | . . . Exploded . | . . . Melee . | . . . Uniques/NPCs Destroyed . | . . . Combat | -11 -10 -9 -------- Run | Yrd Mat Mat Hostile Shots Fired 65 | . 42 23 Missed 18 | . 15 3 Hits 47 | . 27 20 Melee 7 | . . 7 Projectile 40 | . 27 13 Damage Taken 589 | . 247 342 Core 90 | . 37 53 Absorbed by Shields . | . . . Core Remaining (%) 92 | 100 85 . Volleys Fired 55 | 8 40 7 Largest 2 | 2 2 2 Hottest 40 | 40 40 40 Shots Fired 111 | 16 81 14 Gun 111 | 16 81 14 Cannon . | . . . Launcher . | . . . Special . | . . . Kinetic 111 | 16 81 14 Thermal . | . . . Explosive . | . . . Electromagnetic . | . . . Robot Hit Streak 8 | 4 8 4 Robot Miss Streak 6 | 2 6 1 Penetration Max . | . . . Secondary Targets 3 | . 2 1 Max Gunslinging Chain 1 | . 1 1 Shots Hit Robots 61 | 10 43 8 Core Hits 35 | 5 26 4 Critical Kills . | . . . Critical Parts Destroyed . | . . . Critical Strikes . | . . . Melee Attacks . | . . . Impact . | . . . Slashing . | . . . Piercing . | . . . Sneak Attacks . | . . . Combat Hostiles . | . . . Follow-up Attacks . | . . . Damage Inflicted 840 | 114 580 146 Guns 835 | 112 577 146 Cannons . | . . . Explosions . | . . . Melee . | . . . Ramming 5 | 2 3 . Kinetic 835 | 112 577 146 Thermal . | . . . Explosive . | . . . Electromagnetic . | . . . Impact . | . . . Slashing . | . . . Piercing . | . . . Highest Corruption 2 | . 2 . Average Corruption 2 | . 2 . Corruption Purged . | . . . Corruption Blocked . | . . . Effects 17 | . 17 . Message Errors 3 | . 3 . Matter Fused 6 | . 6 . Heat Flow Errors 3 | . 3 . Energy Discharges 1 | . 1 . Parts Fused 1 | . 1 . Data Loss (minor) 2 | . 2 . Misfires 1 | . 1 . Overload Shots . | . . . Overflow Damage . | . . . Projectiles . | . . . Explosions . | . . . Melee . | . . . Knockbacks . | . . . Impact . | . . . Kinetic . | . . . Secondary . | . . . Self-Inflicted Damage . | . . . Shots . | . . . Rammed 2 | 1 1 . Targets Rammed 2 | 1 1 . Kicked . | . . . Crushed . | . . . Highest Temperature 262 | . 262 . Average Temperature 105 | . 105 . Received Heat Transfer 84 | . 60 24 Siege Activations . | . . . Martial Activations . | . . . Shielding Activations . | . . . Robots Disrupted . | . . . Combat Hostiles . | . . . Robots Corrupted . | . . . Combat Hostiles . | . . . Parts Fried . | . . . Impact Corruptions . | . . . Robots Melted . | . . . Combat Hostiles . | . . . Parts Melted . | . . . Heat Transferred . | . . . Parts Sabotaged . | . . . Parts Stolen . | . . . Parts Stripped . | . . . Power Chain Reactions . | . . . Alert | -11 -10 -9 ------- Run | Yrd Mat Mat Maximum Alert Level . | . . . Low Security (%) 100 | 100 100 100 Level 1 . | . . . Level 2 . | . . . Level 3 . | . . . Level 4 . | . . . Level 5 . | . . . High Security . | . . . Max Security . | . . . Peak Influence 170 | 10 170 89 Initial 69 | . . 69 Average 44 | 1 47 58 Influence Increases 448 | 15 373 60 Destroy 0b10 Robot/C 260 | . 240 20 Destroy 0b10 Robot/NC 50 | 15 35 . Destroy Leader 68 | . 58 10 Successful Hack 25 | . 25 . Lose Combat Pursuer 45 | . 15 30 Influence Decreases 389 | 15 207 167 Entered New Map 97 | . . 97 Time Decay 262 | 15 207 40 Lost Part 30 | . . 30 Squads Dispatched 2 | . 2 . Investigation . | . . . Extermination . | . . . Reinforcement 2 | . 2 . Assault . | . . . Garrison . | . . . Intercept . | . . . Searches Triggered . | . . . Construction Impeded . | . . . Haulers Reinforced . | . . . Active Scanning Responses . | . . . Cargo Convoy Interrupts . | . . . Stealth | -11 -10 -9 --------- Run | Yrd Mat Mat Distress Signals 1 | . 1 . Communications Jammed . | . . . Distress Signals . | . . . Times Spotted 28 | . 23 5 Peak Tracking Total 5 | . 4 5 Tactical Retreats 2 | . 1 1 Traps | -11 -10 -9 ------- Run | Yrd Mat Mat Traps Triggered 1 | . 1 . Indirectly . | . . . Trap Hack Attempts . | . . . Triggered . | . . . Disarmed . | . . . Reprogrammed . | . . . Reused . | . . . Traps Extracted . | . . . Installed . | . . . Triggered . | . . . Machines | -11 -10 -9 ---------- Run | Yrd Mat Mat Machines Disabled . | . . . Max in Single Turn . | . . . Machines Repaired . | . . . Machines Dismantled . | . . . Machines Sabotaged . | . . . Overloaded Fab Kills . | . . . Hacking | -11 -10 -9 --------- Run | Yrd Mat Mat Machines Accessed 3 | . 3 . Terminals 3 | . 3 . Fabricators . | . . . Repair Stations . | . . . Recycling Units . | . . . Scanalyzers . | . . . Garrison Access . | . . . Total Hacks 9 | . 9 . Successful 6 | . 6 . Failed 3 | . 3 . Catastrophic 1 | . 1 . Database Lockouts . | . . . Manual 6 | . 6 . Terminals 9 | . 9 . Fabricators . | . . . Repair Stations . | . . . Recycling Units . | . . . Scanalyzers . | . . . Garrison Access . | . . . Terminal Hacks 6 | . 6 . Part Schematic 2 | . 2 . Prototype ID Bank 1 | . 1 . Terminal Index 1 | . 1 . Maintenance Status 1 | . 1 . Hauler Manifests 1 | . 1 . Fabricator Hacks . | . . . Repair Station Hacks . | . . . Recycling Unit Hacks . | . . . Scanalyzer . | . . . Garrison Access Hacks . | . . . Unauthorized Hacks . | . . . Terminals . | . . . Fabricators . | . . . Repair Stations . | . . . Recycling Units . | . . . Scanalyzers . | . . . Garrison Access . | . . . Data Cores Recovered . | . . . Used . | . . . Hacking Detections 2 | . 2 . Full Trace Events 1 | . 1 . Feedback Events . | . . . Feedback Blocked . | . . . Robot Schematics Acquired . | . . . Robots Built . | . . . Authchips . | . . . Time . | . . . Total Robot Build Rating . | . . . Part Schematics Acquired 2 | . 2 . Parts Built . | . . . Authchips . | . . . Time . | . . . Total Part Build Rating . | . . . Part Studies Acquired . | . . . Parts Repaired . | . . . Time . | . . . Parts Recycled . | . . . Recycled Matter . | . . . Retrieved Matter . | . . . Retrieved Components . | . . . Parts Scanalyzed . | . . . Part Schematics Acquired . | . . . Parts Damaged . | . . . Bothacking | -11 -10 -9 ------------ Run | Yrd Mat Mat Used RIF Installer . | . . . Robots Hacked . | . . . Non-combat . | . . . Combat . | . . . Robot Hacks Applied . | . . . Relay Couplers Released . | . . . Fabnet Peak Effective % . | . . . Robots Rewired . | . . . Allies Hacked . | . . . Hacks Repelled . | . . . Allies | -11 -10 -9 -------- Run | Yrd Mat Mat Total Allies . | . . . Largest Group . | . . . Highest-Rated Group . | . . . Highest-Rated Ally . | . . . Total Orders . | . . . Ally Attacks . | . . . Total Damage . | . . . Kills . | . . . Allies Corrupted . | . . . Allies Melted . | . . . Intel | -11 -10 -9 ------- Run | Yrd Mat Mat Active Infowar (turns) 1382 | 22 1278 82 Optics 81 | . . 81 Structural 73 | . . 73 Seismic 1382 | 22 1278 82 Robot Analysis Total . | . . . Derelict Logs Recovered . | . . . Drone Launches . | . . . Drone Recoveries . | . . . Exploration | -11 -10 -9 ------------- Run | Yrd Mat Mat Turns Passed 1460 | 100 1278 82 Spaces Moved 738 | 44 658 36 Core 4 | 4 . . Treads 734 | 40 658 36 Legs . | . . . Wheels . | . . . Hover . | . . . Flight . | . . . Fastest Speed 50 | 50 160 160 Average Speed 159 | 150 160 160 Slowest Speed 160 | 160 160 160 Overloaded Moves . | . . . Propulsion Burnouts . | . . . Robots Hopped . | . . . Potential Cave-ins . | . . . Cave-ins Triggered . | . . . Exploration Rate (%) 24 | 4 66 4 Regions Visited 2 Branch Regions . Pre-discovered Areas . | . . . Known Exits Taken . | . . . Unknown Exits Taken 2 | 1 1 . Scrap Searched . | . . . Spaces Dug . | . . . Terrain Destroyed . | . . . Melee . | . . . Projectile . | . . . AOE . | . . . Terrain Rammed . | . . . Walls Destroyed . | . . . Machines Disabled . | . . . Actions | -11 -10 -9 --------- Run | Yrd Mat Mat Total 912 | 60 806 46 Wait 82 | . 82 . Move 737 | 44 657 36 Hop . | . . . Pick Up 19 | 1 17 1 Fast Attach 7 | 7 . . Attach 2 | . . 2 Detach . | . . . Swap 3 | . 3 . Drop 6 | . 6 . Fire 55 | 8 40 7 Melee . | . . . Ram . | . . . Kick . | . . . Crush 1 | . 1 . Escape Stasis . | . . . Rewire . | . . . Trap . | . . . Miscellaneous . | . . . Route ------- -11/Scrapyard -10/Materials (discovered 5 exits: [*Mat x3] / [*Min] / [*Sub]) -9/Materials History --------- Turn | Location | Event 22 | -11/Scrapyard | Discovered new exit (range 16) 101 | -11/Scrapyard | Entered Materials 307 | -10/Materials | Build established: Mutant 438 | -10/Materials | Discovered new exit (range 8) 479 | -10/Materials | Discovered new exit (range 16) 1027 | -10/Materials | Discovered new exit (range 16) 1179 | -10/Materials | Discovered new exit (range 9) 1323 | -10/Materials | Discovered new exit (range 15) 1379 | -10/Materials | Entered another Materials area 1379 | -9/Materials | Evolved 2 slots: Utility x2 1461 | -9/Materials | Self-destructed Last Messages --------------- 01346_ K-01 Serf collects debris. 01349_ Extracted 57 matter. 01350_ K-01 Serf collects debris. 01357_ Dropped Lgt. Ion Engine. 01358_ Acquired 10 matter. 01358_ K-01 Serf collects debris. 01365_ K-01 Serf cleans the Terminal. 01367_ K-01 Serf collects debris. 01369_ K-01 Serf cleans the Terminal. 01370_ K-01 Serf collects debris. 01379_ R-06 Scavenger collects Heat Sink. PARAMETERS=UTILITY+2 LOCATION=UNKNOWN GOAL=ESCAPE 01402_ Acquired ECM Suite. 01452_ Structural Scanner destroyed. 01455_ S-10 Pest destroyed. 01455_ Switching to secondary target: L-31 Rogue. 01457_ Lgt. Treads destroyed. 01460_ Assault Rifle destroyed. Map ----- +----------------------------------------------------+ | ?????????????????????????????????????????????????? | | ?????????????????????????????????????????????????? | | ?????????????????????????????????????????????????? | | ?????????????????????????????????????????????????? | | ???????????????????????????????? ??????????????? | | ?????????????????????????????? # ##????????????? | | ?????????????????????????????? # ##????????????? | | ?????????????????????????????? # ##????????????? | | ?????????????????????????????? # ##????????????? | | ?????????????????????????????? # ##????????????? | | ?????????????????????????????? # ##????????????? | | ?????????????????????????????? # ####??????????? | | ?????????????????????????????? # ####??????????? | | ?????????????????????????????? # ??????????? | | ?????????????????????????????? + ????????????? | | ????????????????????? # # ???? | | ????????????????????? ########## ###########???? | | ????????????????????? # # # ##???? | | ????????????????????? # # # """ ##???? | | ????????????????????? # # # """ ##???? | | ????????????????????? # # # """ ##???? | | ????????????????????? # s + ##???? | | ???????????????? # s# # """ ##???? | | ???????????????? ###### # # """ ##???? | | ???????????????? # %+* # # """ ##???? | | ????????? / # l@ ##### ##???? | | ???????? # ?? ########################???? | | ????????????????????? ###########?############???? | | ?????????????????????????????????????????????????? | | ?????????????????????????????????????????????????? | | ?????????????????????????????????????????????????? | | ?????????????????????????????????????????????????? | | ?????????????????????????????????????????????????? | | ?????????????????????????????????????????????????? | | ?????????????????????????????????????????????????? | | ?????????????????????????????????????????????????? | | ?????????????????????????????????????????????????? | | | | | | | | | | | | | | | | | | | | | | | | | | | +----------------------------------------------------+ Best States ------------- Heat Dissipation 28 Energy Generation 10 Energy Capacity 250 Matter Stores 300 Matter Capacity 300 Sight Range 18 Terrain Scan Density 10 Evasion (%) 40 Recoil Reduction 2 Item Schematics ----------------- Sensor Array | -10/Materials | Hacked Signal Interpreter | -10/Materials | Hacked Robot Schematics ------------------ None Fabricated ------------ Nothing Repaired ---------- Nothing Studied --------- None Alien Tech Used ----------------- None Achievements -------------- None Challenges ------------ None Game ------ Seed BurstSeismicFlakker Manual? 0 Play Time 00:11:10 Cumulative 28.0 hours Start 2026.01.29 @ 20:55:17 End 2026.01.29 @ 21:18:53 Sessions 1 Manual Loads 0 Difficulty Rogue Special Mode None Game No. 58 Rogue 58 Adventurer 0 Explorer 0 Win Type - Total 0 Types 0/0/0/0/0/0/0/0/0/0 Lore% 16 Gallery% 22 Achievement% 19 Wizard Run 0 Options --------- Layout 0 ASCII 0 Keyboard 1 Movement Arrows Keybinds 0 Fullscreen 1 Font 18/Smallcaps Map View 38x25 Zoom Use 86% Tactical HUD 1 Map Filters NONE Filters NONE Steam 1 RUN: 57da4fb0-e2a6-4a26-82b5-8e0b464dd585